Workbook

Sheet ملخص ميزانية أول السنة لتاريخه
A2: ميزانية عام 2005 الفعلية مقابل ميزانية أول السنة لتاريخه
A4: رمز دفتر الأستاذ العام | B4: عنوان الحساب | C4: الفعلية | D4: الميزانية | E4: المتبقي ر.س | F4: نسبة المتبقي المئوية
A6: 1000 | B6: الإعلان | C6: ='ملخص المصروفات الشهرية'!O6 -> ر.س750.75 | D6: ر.س100,000.00 | E6: =SUM(+D6-C6) -> ر.س99,249.25 | F6: =SUM(E6/D6) -> 0.9924925
A8: 2000 | B8: أجهزة المكتب | C8: ='ملخص المصروفات الشهرية'!O8 -> 0 | D8: ر.س100,000.00 | E8: =SUM(+D8-C8) -> ر.س100,000.00 | F8: =SUM(E8/D8) -> 1
A10: 3000 | B10: الطابعات | C10: ='ملخص المصروفات الشهرية'!O10 -> 0 | D10: ر.س100,000.00 | E10: =SUM(+D10-C10) -> ر.س100,000.00 | F10: =SUM(E10/D10) -> 1
A12: 4000 | B12: تكاليف الملقم | C12: ='ملخص المصروفات الشهرية'!O12 -> 0 | D12: ر.س100,000.00 | E12: =SUM(+D12-C12) -> ر.س100,000.00 | F12: =SUM(E12/D12) -> 1
A14: 5000 | B14: الموارد | C14: ='ملخص المصروفات الشهرية'!O14 -> 0 | D14: ر.س50,000.00 | E14: =SUM(+D14-C14) -> ر.س50,000.00 | F14: =SUM(E14/D14) -> 1
A16: 6000 | B16: مصروفات العملاء | C16: ='ملخص المصروفات الشهرية'!O16 -> 0 | D16: ر.س25,000.00 | E16: =SUM(+D16-C16) -> ر.س25,000.00 | F16: =SUM(E16/D16) -> 1
A18: 7000 | B18: أجهزة الكمبيوتر | C18: ='ملخص المصروفات الشهرية'!O18 -> ر.س2,500.00 | D18: ر.س75,000.00 | E18: =SUM(+D18-C18) -> ر.س72,500.00 | F18: =SUM(E18/D18) -> 0.9666666667
A20: 8000 | B20: خطة الرعاية الصحية | C20: ='ملخص المصروفات الشهرية'!O20 -> 0 | D20: ر.س65,000.00 | E20: =SUM(+D20-C20) -> ر.س65,000.00 | F20: =SUM(E20/D20) -> 1
A22: 9000 | B22: تكاليف الإنشاء | C22: ='ملخص المصروفات الشهرية'!O22 -> 0 | D22: ر.س125,000.00 | E22: =SUM(+D22-C22) -> ر.س125,000.00 | F22: =SUM(E22/D22) -> 1
A24: 10000 | B24: التسويق | C24: ='ملخص المصروفات الشهرية'!O24 -> 0 | D24: ر.س100,000.00 | E24: =SUM(+D24-C24) -> ر.س100,000.00 | F24: =SUM(E24/D24) -> 1
A26: 11000 | B26: التبرعات | C26: ='ملخص المصروفات الشهرية'!O26 -> ر.س2,500.00 | D26: ر.س250,000.00 | E26: =SUM(+D26-C26) -> ر.س247,500.00 | F26: =SUM(E26/D26) -> 0.99
A28: 12000 | B28: الرعايات الرسمية | C28: ='ملخص المصروفات الشهرية'!O28 -> ر.س1,000.00 | D28: ر.س50,000.00 | E28: =SUM(+D28-C28) -> ر.س49,000.00 | F28: =SUM(E28/D28) -> 0.98
B30: الإجمالي | C30: =SUM(C6:C28) -> ر.س6,750.75 | D30: =SUM(D6:D28) -> ر.س1,140,000.00 | E30: =SUM(E6:E28) -> ر.س1,133,249.25 | F30: =SUM(E30/D30) -> 0.9940782895

Sheet ملخص المصروفات الشهرية
A2: المصروفات الشهرية لعام 2005
A4: رمز دفتر الأستاذ العام | B4: عنوان الحساب | C4: 2005-01-01 | D4: 2005-02-05 | E4: 2005-03-05 | F4: 2005-04-05 | G4: 2005-05-05 | H4: 2005-06-05 | I4: 2005-07-05 | J4: 2005-08-05 | K4: 2005-09-05 | L4: 2005-10-05 | M4: 2005-11-05 | N4: 2005-12-05 | O4: 2005
A6: 1000 | B6: الإعلان | C6: =SUMIF('التبرعات والرعايات الرسمية'!$L:$L,"="&($A6&TEXT(C$4,"mmm-yy")),'التبرعات والرعايات الرسمية'!$D:$D)+SUMIF('ملخص مفصل بالمصروفات'!$J:$J,"="&($A6&TEXT(C$4,"mmm-yy")),'ملخص مفصل بالمصروفات'!$E:$E) -> ر.س750.75 | D6: =SUMIF('التبرعات والرعايات الرسمية'!$L:$L,"="&($A6&TEXT(D$4,"mmm-yy")),'التبرعات والرعايات الرسمية'!$D:$D)+SUMIF('ملخص مفصل بالمصروفات'!$J:$J,"="&($A6&TEXT(D$4,"mmm-yy")),'ملخص مفصل بالمصروفات'!$E:$E) -> 0 | E6: =SUMIF('التبرعات والرعايات الرسمية'!$L:$L,"="&($A6&TEXT(E$4,"mmm-yy")),'التبرعات والرعايات الرسمية'!$D:$D)+SUMIF('ملخص مفصل بالمصروفات'!$J:$J,"="&($A6&TEXT(E$4,"mmm-yy")),'ملخص مفصل بالمصروفات'!$E:$E) -> 0 | F6: =SUMIF('التبرعات والرعايات الرسمية'!$L:$L,"="&($A6&TEXT(F$4,"mmm-yy")),'التبرعات والرعايات الرسمية'!$D:$D)+SUMIF('ملخص مفصل بالمصروفات'!$J:$J,"="&($A6&TEXT(F$4,"mmm-yy")),'ملخص مفصل بالمصروفات'!$E:$E) -> 0 | G6: =SUMIF('التبرعات والرعايات الرسمية'!$L:$L,"="&($A6&TEXT(G$4,"mmm-yy")),'التبرعات والرعايات الرسمية'!$D:$D)+SUMIF('ملخص مفصل بالمصروفات'!$J:$J,"="&($A6&TEXT(G$4,"mmm-yy")),'ملخص مفصل بالمصروفات'!$E:$E) -> 0 | H6: =SUMIF('التبرعات والرعايات الرسمية'!$L:$L,"="&($A6&TEXT(H$4,"mmm-yy")),'التبرعات والرعايات الرسمية'!$D:$D)+SUMIF('ملخص مفصل بالمصروفات'!$J:$J,"="&($A6&TEXT(H$4,"mmm-yy")),'ملخص مفصل بالمصروفات'!$E:$E) -> 0 | I6: =SUMIF('التبرعات والرعايات الرسمية'!$L:$L,"="&($A6&TEXT(I$4,"mmm-yy")),'التبرعات والرعايات الرسمية'!$D:$D)+SUMIF('ملخص مفصل بالمصروفات'!$J:$J,"="&($A6&TEXT(I$4,"mmm-yy")),'ملخص مفصل بالمصروفات'!$E:$E) -> 0 | J6: =SUMIF('التبرعات والرعايات الرسمية'!$L:$L,"="&($A6&TEXT(J$4,"mmm-yy")),'التبرعات والرعايات الرسمية'!$D:$D)+SUMIF('ملخص مفصل بالمصروفات'!$J:$J,"="&($A6&TEXT(J$4,"mmm-yy")),'ملخص مفصل بالمصروفات'!$E:$E) -> 0 | K6: =SUMIF('التبرعات والرعايات الرسمية'!$L:$L,"="&($A6&TEXT(K$4,"mmm-yy")),'التبرعات والرعايات الرسمية'!$D:$D)+SUMIF('ملخص مفصل بالمصروفات'!$J:$J,"="&($A6&TEXT(K$4,"mmm-yy")),'ملخص مفصل بالمصروفات'!$E:$E) -> 0 | L6: =SUMIF('التبرعات والرعايات الرسمية'!$L:$L,"="&($A6&TEXT(L$4,"mmm-yy")),'التبرعات والرعايات الرسمية'!$D:$D)+SUMIF('ملخص مفصل بالمصروفات'!$J:$J,"="&($A6&TEXT(L$4,"mmm-yy")),'ملخص مفصل بالمصروفات'!$E:$E) -> 0 | M6: =SUMIF('التبرعات والرعايات الرسمية'!$L:$L,"="&($A6&TEXT(M$4,"mmm-yy")),'التبرعات والرعايات الرسمية'!$D:$D)+SUMIF('ملخص مفصل بالمصروفات'!$J:$J,"="&($A6&TEXT(M$4,"mmm-yy")),'ملخص مفصل بالمصروفات'!$E:$E) -> 0 | N6: =SUMIF('التبرعات والرعايات الرسمية'!$L:$L,"="&($A6&TEXT(N$4,"mmm-yy")),'التبرعات والرعايات الرسمية'!$D:$D)+SUMIF('ملخص مفصل بالمصروفات'!$J:$J,"="&($A6&TEXT(N$4,"mmm-yy")),'ملخص مفصل بالمصروفات'!$E:$E) -> 0 | O6: =SUM(C6:N6) -> ر.س750.75
A8: 2000 | B8: أجهزة المكتب | C8: =SUMIF('التبرعات والرعايات الرسمية'!$L:$L,"="&($A8&TEXT(C$4,"mmm-yy")),'التبرعات والرعايات الرسمية'!$D:$D)+SUMIF('ملخص مفصل بالمصروفات'!$J:$J,"="&($A8&TEXT(C$4,"mmm-yy")),'ملخص مفصل بالمصروفات'!$E:$E) -> 0 | D8: =SUMIF('التبرعات والرعايات الرسمية'!$L:$L,"="&($A8&TEXT(D$4,"mmm-yy")),'التبرعات والرعايات الرسمية'!$D:$D)+SUMIF('ملخص مفصل بالمصروفات'!$J:$J,"="&($A8&TEXT(D$4,"mmm-yy")),'ملخص مفصل بالمصروفات'!$E:$E) -> 0 | E8: =SUMIF('التبرعات والرعايات الرسمية'!$L:$L,"="&($A8&TEXT(E$4,"mmm-yy")),'التبرعات والرعايات الرسمية'!$D:$D)+SUMIF('ملخص مفصل بالمصروفات'!$J:$J,"="&($A8&TEXT(E$4,"mmm-yy")),'ملخص مفصل بالمصروفات'!$E:$E) -> 0 | F8: =SUMIF('التبرعات والرعايات الرسمية'!$L:$L,"="&($A8&TEXT(F$4,"mmm-yy")),'التبرعات والرعايات الرسمية'!$D:$D)+SUMIF('ملخص مفصل بالمصروفات'!$J:$J,"="&($A8&TEXT(F$4,"mmm-yy")),'ملخص مفصل بالمصروفات'!$E:$E) -> 0 | G8: =SUMIF('التبرعات والرعايات الرسمية'!$L:$L,"="&($A8&TEXT(G$4,"mmm-yy")),'التبرعات والرعايات الرسمية'!$D:$D)+SUMIF('ملخص مفصل بالمصروفات'!$J:$J,"="&($A8&TEXT(G$4,"mmm-yy")),'ملخص مفصل بالمصروفات'!$E:$E) -> 0 | H8: =SUMIF('التبرعات والرعايات الرسمية'!$L:$L,"="&($A8&TEXT(H$4,"mmm-yy")),'التبرعات والرعايات الرسمية'!$D:$D)+SUMIF('ملخص مفصل بالمصروفات'!$J:$J,"="&($A8&TEXT(H$4,"mmm-yy")),'ملخص مفصل بالمصروفات'!$E:$E) -> 0 | I8: =SUMIF('التبرعات والرعايات الرسمية'!$L:$L,"="&($A8&TEXT(I$4,"mmm-yy")),'التبرعات والرعايات الرسمية'!$D:$D)+SUMIF('ملخص مفصل بالمصروفات'!$J:$J,"="&($A8&TEXT(I$4,"mmm-yy")),'ملخص مفصل بالمصروفات'!$E:$E) -> 0 | J8: =SUMIF('التبرعات والرعايات الرسمية'!$L:$L,"="&($A8&TEXT(J$4,"mmm-yy")),'التبرعات والرعايات الرسمية'!$D:$D)+SUMIF('ملخص مفصل بالمصروفات'!$J:$J,"="&($A8&TEXT(J$4,"mmm-yy")),'ملخص مفصل بالمصروفات'!$E:$E) -> 0 | K8: =SUMIF('التبرعات والرعايات الرسمية'!$L:$L,"="&($A8&TEXT(K$4,"mmm-yy")),'التبرعات والرعايات الرسمية'!$D:$D)+SUMIF('ملخص مفصل بالمصروفات'!$J:$J,"="&($A8&TEXT(K$4,"mmm-yy")),'ملخص مفصل بالمصروفات'!$E:$E) -> 0 | L8: =SUMIF('التبرعات والرعايات الرسمية'!$L:$L,"="&($A8&TEXT(L$4,"mmm-yy")),'التبرعات والرعايات الرسمية'!$D:$D)+SUMIF('ملخص مفصل بالمصروفات'!$J:$J,"="&($A8&TEXT(L$4,"mmm-yy")),'ملخص مفصل بالمصروفات'!$E:$E) -> 0 | M8: =SUMIF('التبرعات والرعايات الرسمية'!$L:$L,"="&($A8&TEXT(M$4,"mmm-yy")),'التبرعات والرعايات الرسمية'!$D:$D)+SUMIF('ملخص مفصل بالمصروفات'!$J:$J,"="&($A8&TEXT(M$4,"mmm-yy")),'ملخص مفصل بالمصروفات'!$E:$E) -> 0 | N8: =SUMIF('التبرعات والرعايات الرسمية'!$L:$L,"="&($A8&TEXT(N$4,"mmm-yy")),'التبرعات والرعايات الرسمية'!$D:$D)+SUMIF('ملخص مفصل بالمصروفات'!$J:$J,"="&($A8&TEXT(N$4,"mmm-yy")),'ملخص مفصل بالمصروفات'!$E:$E) -> 0 | O8: =SUM(C8:N8) -> 0
A10: 3000 | B10: الطابعات | C10: =SUMIF('التبرعات والرعايات الرسمية'!$L:$L,"="&($A10&TEXT(C$4,"mmm-yy")),'التبرعات والرعايات الرسمية'!$D:$D)+SUMIF('ملخص مفصل بالمصروفات'!$J:$J,"="&($A10&TEXT(C$4,"mmm-yy")),'ملخص مفصل بالمصروفات'!$E:$E) -> 0 | D10: =SUMIF('التبرعات والرعايات الرسمية'!$L:$L,"="&($A10&TEXT(D$4,"mmm-yy")),'التبرعات والرعايات الرسمية'!$D:$D)+SUMIF('ملخص مفصل بالمصروفات'!$J:$J,"="&($A10&TEXT(D$4,"mmm-yy")),'ملخص مفصل بالمصروفات'!$E:$E) -> 0 | E10: =SUMIF('التبرعات والرعايات الرسمية'!$L:$L,"="&($A10&TEXT(E$4,"mmm-yy")),'التبرعات والرعايات الرسمية'!$D:$D)+SUMIF('ملخص مفصل بالمصروفات'!$J:$J,"="&($A10&TEXT(E$4,"mmm-yy")),'ملخص مفصل بالمصروفات'!$E:$E) -> 0 | F10: =SUMIF('التبرعات والرعايات الرسمية'!$L:$L,"="&($A10&TEXT(F$4,"mmm-yy")),'التبرعات والرعايات الرسمية'!$D:$D)+SUMIF('ملخص مفصل بالمصروفات'!$J:$J,"="&($A10&TEXT(F$4,"mmm-yy")),'ملخص مفصل بالمصروفات'!$E:$E) -> 0 | G10: =SUMIF('التبرعات والرعايات الرسمية'!$L:$L,"="&($A10&TEXT(G$4,"mmm-yy")),'التبرعات والرعايات الرسمية'!$D:$D)+SUMIF('ملخص مفصل بالمصروفات'!$J:$J,"="&($A10&TEXT(G$4,"mmm-yy")),'ملخص مفصل بالمصروفات'!$E:$E) -> 0 | H10: =SUMIF('التبرعات والرعايات الرسمية'!$L:$L,"="&($A10&TEXT(H$4,"mmm-yy")),'التبرعات والرعايات الرسمية'!$D:$D)+SUMIF('ملخص مفصل بالمصروفات'!$J:$J,"="&($A10&TEXT(H$4,"mmm-yy")),'ملخص مفصل بالمصروفات'!$E:$E) -> 0 | I10: =SUMIF('التبرعات والرعايات الرسمية'!$L:$L,"="&($A10&TEXT(I$4,"mmm-yy")),'التبرعات والرعايات الرسمية'!$D:$D)+SUMIF('ملخص مفصل بالمصروفات'!$J:$J,"="&($A10&TEXT(I$4,"mmm-yy")),'ملخص مفصل بالمصروفات'!$E:$E) -> 0 | J10: =SUMIF('التبرعات والرعايات الرسمية'!$L:$L,"="&($A10&TEXT(J$4,"mmm-yy")),'التبرعات والرعايات الرسمية'!$D:$D)+SUMIF('ملخص مفصل بالمصروفات'!$J:$J,"="&($A10&TEXT(J$4,"mmm-yy")),'ملخص مفصل بالمصروفات'!$E:$E) -> 0 | K10: =SUMIF('التبرعات والرعايات الرسمية'!$L:$L,"="&($A10&TEXT(K$4,"mmm-yy")),'التبرعات والرعايات الرسمية'!$D:$D)+SUMIF('ملخص مفصل بالمصروفات'!$J:$J,"="&($A10&TEXT(K$4,"mmm-yy")),'ملخص مفصل بالمصروفات'!$E:$E) -> 0 | L10: =SUMIF('التبرعات والرعايات الرسمية'!$L:$L,"="&($A10&TEXT(L$4,"mmm-yy")),'التبرعات والرعايات الرسمية'!$D:$D)+SUMIF('ملخص مفصل بالمصروفات'!$J:$J,"="&($A10&TEXT(L$4,"mmm-yy")),'ملخص مفصل بالمصروفات'!$E:$E) -> 0 | M10: =SUMIF('التبرعات والرعايات الرسمية'!$L:$L,"="&($A10&TEXT(M$4,"mmm-yy")),'التبرعات والرعايات الرسمية'!$D:$D)+SUMIF('ملخص مفصل بالمصروفات'!$J:$J,"="&($A10&TEXT(M$4,"mmm-yy")),'ملخص مفصل بالمصروفات'!$E:$E) -> 0 | N10: =SUMIF('التبرعات والرعايات الرسمية'!$L:$L,"="&($A10&TEXT(N$4,"mmm-yy")),'التبرعات والرعايات الرسمية'!$D:$D)+SUMIF('ملخص مفصل بالمصروفات'!$J:$J,"="&($A10&TEXT(N$4,"mmm-yy")),'ملخص مفصل بالمصروفات'!$E:$E) -> 0 | O10: =SUM(C10:N10) -> 0
A12: 4000 | B12: تكاليف الملقم | C12: =SUMIF('التبرعات والرعايات الرسمية'!$L:$L,"="&($A12&TEXT(C$4,"mmm-yy")),'التبرعات والرعايات الرسمية'!$D:$D)+SUMIF('ملخص مفصل بالمصروفات'!$J:$J,"="&($A12&TEXT(C$4,"mmm-yy")),'ملخص مفصل بالمصروفات'!$E:$E) -> 0 | D12: =SUMIF('التبرعات والرعايات الرسمية'!$L:$L,"="&($A12&TEXT(D$4,"mmm-yy")),'التبرعات والرعايات الرسمية'!$D:$D)+SUMIF('ملخص مفصل بالمصروفات'!$J:$J,"="&($A12&TEXT(D$4,"mmm-yy")),'ملخص مفصل بالمصروفات'!$E:$E) -> 0 | E12: =SUMIF('التبرعات والرعايات الرسمية'!$L:$L,"="&($A12&TEXT(E$4,"mmm-yy")),'التبرعات والرعايات الرسمية'!$D:$D)+SUMIF('ملخص مفصل بالمصروفات'!$J:$J,"="&($A12&TEXT(E$4,"mmm-yy")),'ملخص مفصل بالمصروفات'!$E:$E) -> 0 | F12: =SUMIF('التبرعات والرعايات الرسمية'!$L:$L,"="&($A12&TEXT(F$4,"mmm-yy")),'التبرعات والرعايات الرسمية'!$D:$D)+SUMIF('ملخص مفصل بالمصروفات'!$J:$J,"="&($A12&TEXT(F$4,"mmm-yy")),'ملخص مفصل بالمصروفات'!$E:$E) -> 0 | G12: =SUMIF('التبرعات والرعايات الرسمية'!$L:$L,"="&($A12&TEXT(G$4,"mmm-yy")),'التبرعات والرعايات الرسمية'!$D:$D)+SUMIF('ملخص مفصل بالمصروفات'!$J:$J,"="&($A12&TEXT(G$4,"mmm-yy")),'ملخص مفصل بالمصروفات'!$E:$E) -> 0 | H12: =SUMIF('التبرعات والرعايات الرسمية'!$L:$L,"="&($A12&TEXT(H$4,"mmm-yy")),'التبرعات والرعايات الرسمية'!$D:$D)+SUMIF('ملخص مفصل بالمصروفات'!$J:$J,"="&($A12&TEXT(H$4,"mmm-yy")),'ملخص مفصل بالمصروفات'!$E:$E) -> 0 | I12: =SUMIF('التبرعات والرعايات الرسمية'!$L:$L,"="&($A12&TEXT(I$4,"mmm-yy")),'التبرعات والرعايات الرسمية'!$D:$D)+SUMIF('ملخص مفصل بالمصروفات'!$J:$J,"="&($A12&TEXT(I$4,"mmm-yy")),'ملخص مفصل بالمصروفات'!$E:$E) -> 0 | J12: =SUMIF('التبرعات والرعايات الرسمية'!$L:$L,"="&($A12&TEXT(J$4,"mmm-yy")),'التبرعات والرعايات الرسمية'!$D:$D)+SUMIF('ملخص مفصل بالمصروفات'!$J:$J,"="&($A12&TEXT(J$4,"mmm-yy")),'ملخص مفصل بالمصروفات'!$E:$E) -> 0 | K12: =SUMIF('التبرعات والرعايات الرسمية'!$L:$L,"="&($A12&TEXT(K$4,"mmm-yy")),'التبرعات والرعايات الرسمية'!$D:$D)+SUMIF('ملخص مفصل بالمصروفات'!$J:$J,"="&($A12&TEXT(K$4,"mmm-yy")),'ملخص مفصل بالمصروفات'!$E:$E) -> 0 | L12: =SUMIF('التبرعات والرعايات الرسمية'!$L:$L,"="&($A12&TEXT(L$4,"mmm-yy")),'التبرعات والرعايات الرسمية'!$D:$D)+SUMIF('ملخص مفصل بالمصروفات'!$J:$J,"="&($A12&TEXT(L$4,"mmm-yy")),'ملخص مفصل بالمصروفات'!$E:$E) -> 0 | M12: =SUMIF('التبرعات والرعايات الرسمية'!$L:$L,"="&($A12&TEXT(M$4,"mmm-yy")),'التبرعات والرعايات الرسمية'!$D:$D)+SUMIF('ملخص مفصل بالمصروفات'!$J:$J,"="&($A12&TEXT(M$4,"mmm-yy")),'ملخص مفصل بالمصروفات'!$E:$E) -> 0 | N12: =SUMIF('التبرعات والرعايات الرسمية'!$L:$L,"="&($A12&TEXT(N$4,"mmm-yy")),'التبرعات والرعايات الرسمية'!$D:$D)+SUMIF('ملخص مفصل بالمصروفات'!$J:$J,"="&($A12&TEXT(N$4,"mmm-yy")),'ملخص مفصل بالمصروفات'!$E:$E) -> 0 | O12: =SUM(C12:N12) -> 0
A14: 5000 | B14: الموارد | C14: =SUMIF('التبرعات والرعايات الرسمية'!$L:$L,"="&($A14&TEXT(C$4,"mmm-yy")),'التبرعات والرعايات الرسمية'!$D:$D)+SUMIF('ملخص مفصل بالمصروفات'!$J:$J,"="&($A14&TEXT(C$4,"mmm-yy")),'ملخص مفصل بالمصروفات'!$E:$E) -> 0 | D14: =SUMIF('التبرعات والرعايات الرسمية'!$L:$L,"="&($A14&TEXT(D$4,"mmm-yy")),'التبرعات والرعايات الرسمية'!$D:$D)+SUMIF('ملخص مفصل بالمصروفات'!$J:$J,"="&($A14&TEXT(D$4,"mmm-yy")),'ملخص مفصل بالمصروفات'!$E:$E) -> 0 | E14: =SUMIF('التبرعات والرعايات الرسمية'!$L:$L,"="&($A14&TEXT(E$4,"mmm-yy")),'التبرعات والرعايات الرسمية'!$D:$D)+SUMIF('ملخص مفصل بالمصروفات'!$J:$J,"="&($A14&TEXT(E$4,"mmm-yy")),'ملخص مفصل بالمصروفات'!$E:$E) -> 0 | F14: =SUMIF('التبرعات والرعايات الرسمية'!$L:$L,"="&($A14&TEXT(F$4,"mmm-yy")),'التبرعات والرعايات الرسمية'!$D:$D)+SUMIF('ملخص مفصل بالمصروفات'!$J:$J,"="&($A14&TEXT(F$4,"mmm-yy")),'ملخص مفصل بالمصروفات'!$E:$E) -> 0 | G14: =SUMIF('التبرعات والرعايات الرسمية'!$L:$L,"="&($A14&TEXT(G$4,"mmm-yy")),'التبرعات والرعايات الرسمية'!$D:$D)+SUMIF('ملخص مفصل بالمصروفات'!$J:$J,"="&($A14&TEXT(G$4,"mmm-yy")),'ملخص مفصل بالمصروفات'!$E:$E) -> 0 | H14: =SUMIF('التبرعات والرعايات الرسمية'!$L:$L,"="&($A14&TEXT(H$4,"mmm-yy")),'التبرعات والرعايات الرسمية'!$D:$D)+SUMIF('ملخص مفصل بالمصروفات'!$J:$J,"="&($A14&TEXT(H$4,"mmm-yy")),'ملخص مفصل بالمصروفات'!$E:$E) -> 0 | I14: =SUMIF('التبرعات والرعايات الرسمية'!$L:$L,"="&($A14&TEXT(I$4,"mmm-yy")),'التبرعات والرعايات الرسمية'!$D:$D)+SUMIF('ملخص مفصل بالمصروفات'!$J:$J,"="&($A14&TEXT(I$4,"mmm-yy")),'ملخص مفصل بالمصروفات'!$E:$E) -> 0 | J14: =SUMIF('التبرعات والرعايات الرسمية'!$L:$L,"="&($A14&TEXT(J$4,"mmm-yy")),'التبرعات والرعايات الرسمية'!$D:$D)+SUMIF('ملخص مفصل بالمصروفات'!$J:$J,"="&($A14&TEXT(J$4,"mmm-yy")),'ملخص مفصل بالمصروفات'!$E:$E) -> 0 | K14: =SUMIF('التبرعات والرعايات الرسمية'!$L:$L,"="&($A14&TEXT(K$4,"mmm-yy")),'التبرعات والرعايات الرسمية'!$D:$D)+SUMIF('ملخص مفصل بالمصروفات'!$J:$J,"="&($A14&TEXT(K$4,"mmm-yy")),'ملخص مفصل بالمصروفات'!$E:$E) -> 0 | L14: =SUMIF('التبرعات والرعايات الرسمية'!$L:$L,"="&($A14&TEXT(L$4,"mmm-yy")),'التبرعات والرعايات الرسمية'!$D:$D)+SUMIF('ملخص مفصل بالمصروفات'!$J:$J,"="&($A14&TEXT(L$4,"mmm-yy")),'ملخص مفصل بالمصروفات'!$E:$E) -> 0 | M14: =SUMIF('التبرعات والرعايات الرسمية'!$L:$L,"="&($A14&TEXT(M$4,"mmm-yy")),'التبرعات والرعايات الرسمية'!$D:$D)+SUMIF('ملخص مفصل بالمصروفات'!$J:$J,"="&($A14&TEXT(M$4,"mmm-yy")),'ملخص مفصل بالمصروفات'!$E:$E) -> 0 | N14: =SUMIF('التبرعات والرعايات الرسمية'!$L:$L,"="&($A14&TEXT(N$4,"mmm-yy")),'التبرعات والرعايات الرسمية'!$D:$D)+SUMIF('ملخص مفصل بالمصروفات'!$J:$J,"="&($A14&TEXT(N$4,"mmm-yy")),'ملخص مفصل بالمصروفات'!$E:$E) -> 0 | O14: =SUM(C14:N14) -> 0
A16: 6000 | B16: مصروفات العملاء | C16: =SUMIF('التبرعات والرعايات الرسمية'!$L:$L,"="&($A16&TEXT(C$4,"mmm-yy")),'التبرعات والرعايات الرسمية'!$D:$D)+SUMIF('ملخص مفصل بالمصروفات'!$J:$J,"="&($A16&TEXT(C$4,"mmm-yy")),'ملخص مفصل بالمصروفات'!$E:$E) -> 0 | D16: =SUMIF('التبرعات والرعايات الرسمية'!$L:$L,"="&($A16&TEXT(D$4,"mmm-yy")),'التبرعات والرعايات الرسمية'!$D:$D)+SUMIF('ملخص مفصل بالمصروفات'!$J:$J,"="&($A16&TEXT(D$4,"mmm-yy")),'ملخص مفصل بالمصروفات'!$E:$E) -> 0 | E16: =SUMIF('التبرعات والرعايات الرسمية'!$L:$L,"="&($A16&TEXT(E$4,"mmm-yy")),'التبرعات والرعايات الرسمية'!$D:$D)+SUMIF('ملخص مفصل بالمصروفات'!$J:$J,"="&($A16&TEXT(E$4,"mmm-yy")),'ملخص مفصل بالمصروفات'!$E:$E) -> 0 | F16: =SUMIF('التبرعات والرعايات الرسمية'!$L:$L,"="&($A16&TEXT(F$4,"mmm-yy")),'التبرعات والرعايات الرسمية'!$D:$D)+SUMIF('ملخص مفصل بالمصروفات'!$J:$J,"="&($A16&TEXT(F$4,"mmm-yy")),'ملخص مفصل بالمصروفات'!$E:$E) -> 0 | G16: =SUMIF('التبرعات والرعايات الرسمية'!$L:$L,"="&($A16&TEXT(G$4,"mmm-yy")),'التبرعات والرعايات الرسمية'!$D:$D)+SUMIF('ملخص مفصل بالمصروفات'!$J:$J,"="&($A16&TEXT(G$4,"mmm-yy")),'ملخص مفصل بالمصروفات'!$E:$E) -> 0 | H16: =SUMIF('التبرعات والرعايات الرسمية'!$L:$L,"="&($A16&TEXT(H$4,"mmm-yy")),'التبرعات والرعايات الرسمية'!$D:$D)+SUMIF('ملخص مفصل بالمصروفات'!$J:$J,"="&($A16&TEXT(H$4,"mmm-yy")),'ملخص مفصل بالمصروفات'!$E:$E) -> 0 | I16: =SUMIF('التبرعات والرعايات الرسمية'!$L:$L,"="&($A16&TEXT(I$4,"mmm-yy")),'التبرعات والرعايات الرسمية'!$D:$D)+SUMIF('ملخص مفصل بالمصروفات'!$J:$J,"="&($A16&TEXT(I$4,"mmm-yy")),'ملخص مفصل بالمصروفات'!$E:$E) -> 0 | J16: =SUMIF('التبرعات والرعايات الرسمية'!$L:$L,"="&($A16&TEXT(J$4,"mmm-yy")),'التبرعات والرعايات الرسمية'!$D:$D)+SUMIF('ملخص مفصل بالمصروفات'!$J:$J,"="&($A16&TEXT(J$4,"mmm-yy")),'ملخص مفصل بالمصروفات'!$E:$E) -> 0 | K16: =SUMIF('التبرعات والرعايات الرسمية'!$L:$L,"="&($A16&TEXT(K$4,"mmm-yy")),'التبرعات والرعايات الرسمية'!$D:$D)+SUMIF('ملخص مفصل بالمصروفات'!$J:$J,"="&($A16&TEXT(K$4,"mmm-yy")),'ملخص مفصل بالمصروفات'!$E:$E) -> 0 | L16: =SUMIF('التبرعات والرعايات الرسمية'!$L:$L,"="&($A16&TEXT(L$4,"mmm-yy")),'التبرعات والرعايات الرسمية'!$D:$D)+SUMIF('ملخص مفصل بالمصروفات'!$J:$J,"="&($A16&TEXT(L$4,"mmm-yy")),'ملخص مفصل بالمصروفات'!$E:$E) -> 0 | M16: =SUMIF('التبرعات والرعايات الرسمية'!$L:$L,"="&($A16&TEXT(M$4,"mmm-yy")),'التبرعات والرعايات الرسمية'!$D:$D)+SUMIF('ملخص مفصل بالمصروفات'!$J:$J,"="&($A16&TEXT(M$4,"mmm-yy")),'ملخص مفصل بالمصروفات'!$E:$E) -> 0 | N16: =SUMIF('التبرعات والرعايات الرسمية'!$L:$L,"="&($A16&TEXT(N$4,"mmm-yy")),'التبرعات والرعايات الرسمية'!$D:$D)+SUMIF('ملخص مفصل بالمصروفات'!$J:$J,"="&($A16&TEXT(N$4,"mmm-yy")),'ملخص مفصل بالمصروفات'!$E:$E) -> 0 | O16: =SUM(C16:N16) -> 0
A18: 7000 | B18: أجهزة الكمبيوتر | C18: =SUMIF('التبرعات والرعايات الرسمية'!$L:$L,"="&($A18&TEXT(C$4,"mmm-yy")),'التبرعات والرعايات الرسمية'!$D:$D)+SUMIF('ملخص مفصل بالمصروفات'!$J:$J,"="&($A18&TEXT(C$4,"mmm-yy")),'ملخص مفصل بالمصروفات'!$E:$E) -> ر.س2,500.00 | D18: =SUMIF('التبرعات والرعايات الرسمية'!$L:$L,"="&($A18&TEXT(D$4,"mmm-yy")),'التبرعات والرعايات الرسمية'!$D:$D)+SUMIF('ملخص مفصل بالمصروفات'!$J:$J,"="&($A18&TEXT(D$4,"mmm-yy")),'ملخص مفصل بالمصروفات'!$E:$E) -> 0 | E18: =SUMIF('التبرعات والرعايات الرسمية'!$L:$L,"="&($A18&TEXT(E$4,"mmm-yy")),'التبرعات والرعايات الرسمية'!$D:$D)+SUMIF('ملخص مفصل بالمصروفات'!$J:$J,"="&($A18&TEXT(E$4,"mmm-yy")),'ملخص مفصل بالمصروفات'!$E:$E) -> 0 | F18: =SUMIF('التبرعات والرعايات الرسمية'!$L:$L,"="&($A18&TEXT(F$4,"mmm-yy")),'التبرعات والرعايات الرسمية'!$D:$D)+SUMIF('ملخص مفصل بالمصروفات'!$J:$J,"="&($A18&TEXT(F$4,"mmm-yy")),'ملخص مفصل بالمصروفات'!$E:$E) -> 0 | G18: =SUMIF('التبرعات والرعايات الرسمية'!$L:$L,"="&($A18&TEXT(G$4,"mmm-yy")),'التبرعات والرعايات الرسمية'!$D:$D)+SUMIF('ملخص مفصل بالمصروفات'!$J:$J,"="&($A18&TEXT(G$4,"mmm-yy")),'ملخص مفصل بالمصروفات'!$E:$E) -> 0 | H18: =SUMIF('التبرعات والرعايات الرسمية'!$L:$L,"="&($A18&TEXT(H$4,"mmm-yy")),'التبرعات والرعايات الرسمية'!$D:$D)+SUMIF('ملخص مفصل بالمصروفات'!$J:$J,"="&($A18&TEXT(H$4,"mmm-yy")),'ملخص مفصل بالمصروفات'!$E:$E) -> 0 | I18: =SUMIF('التبرعات والرعايات الرسمية'!$L:$L,"="&($A18&TEXT(I$4,"mmm-yy")),'التبرعات والرعايات الرسمية'!$D:$D)+SUMIF('ملخص مفصل بالمصروفات'!$J:$J,"="&($A18&TEXT(I$4,"mmm-yy")),'ملخص مفصل بالمصروفات'!$E:$E) -> 0 | J18: =SUMIF('التبرعات والرعايات الرسمية'!$L:$L,"="&($A18&TEXT(J$4,"mmm-yy")),'التبرعات والرعايات الرسمية'!$D:$D)+SUMIF('ملخص مفصل بالمصروفات'!$J:$J,"="&($A18&TEXT(J$4,"mmm-yy")),'ملخص مفصل بالمصروفات'!$E:$E) -> 0 | K18: =SUMIF('التبرعات والرعايات الرسمية'!$L:$L,"="&($A18&TEXT(K$4,"mmm-yy")),'التبرعات والرعايات الرسمية'!$D:$D)+SUMIF('ملخص مفصل بالمصروفات'!$J:$J,"="&($A18&TEXT(K$4,"mmm-yy")),'ملخص مفصل بالمصروفات'!$E:$E) -> 0 | L18: =SUMIF('التبرعات والرعايات الرسمية'!$L:$L,"="&($A18&TEXT(L$4,"mmm-yy")),'التبرعات والرعايات الرسمية'!$D:$D)+SUMIF('ملخص مفصل بالمصروفات'!$J:$J,"="&($A18&TEXT(L$4,"mmm-yy")),'ملخص مفصل بالمصروفات'!$E:$E) -> 0 | M18: =SUMIF('التبرعات والرعايات الرسمية'!$L:$L,"="&($A18&TEXT(M$4,"mmm-yy")),'التبرعات والرعايات الرسمية'!$D:$D)+SUMIF('ملخص مفصل بالمصروفات'!$J:$J,"="&($A18&TEXT(M$4,"mmm-yy")),'ملخص مفصل بالمصروفات'!$E:$E) -> 0 | N18: =SUMIF('التبرعات والرعايات الرسمية'!$L:$L,"="&($A18&TEXT(N$4,"mmm-yy")),'التبرعات والرعايات الرسمية'!$D:$D)+SUMIF('ملخص مفصل بالمصروفات'!$J:$J,"="&($A18&TEXT(N$4,"mmm-yy")),'ملخص مفصل بالمصروفات'!$E:$E) -> 0 | O18: =SUM(C18:N18) -> ر.س2,500.00
A20: 8000 | B20: خطة الرعاية الصحية | C20: =SUMIF('التبرعات والرعايات الرسمية'!$L:$L,"="&($A20&TEXT(C$4,"mmm-yy")),'التبرعات والرعايات الرسمية'!$D:$D)+SUMIF('ملخص مفصل بالمصروفات'!$J:$J,"="&($A20&TEXT(C$4,"mmm-yy")),'ملخص مفصل بالمصروفات'!$E:$E) -> 0 | D20: =SUMIF('التبرعات والرعايات الرسمية'!$L:$L,"="&($A20&TEXT(D$4,"mmm-yy")),'التبرعات والرعايات الرسمية'!$D:$D)+SUMIF('ملخص مفصل بالمصروفات'!$J:$J,"="&($A20&TEXT(D$4,"mmm-yy")),'ملخص مفصل بالمصروفات'!$E:$E) -> 0 | E20: =SUMIF('التبرعات والرعايات الرسمية'!$L:$L,"="&($A20&TEXT(E$4,"mmm-yy")),'التبرعات والرعايات الرسمية'!$D:$D)+SUMIF('ملخص مفصل بالمصروفات'!$J:$J,"="&($A20&TEXT(E$4,"mmm-yy")),'ملخص مفصل بالمصروفات'!$E:$E) -> 0 | F20: =SUMIF('التبرعات والرعايات الرسمية'!$L:$L,"="&($A20&TEXT(F$4,"mmm-yy")),'التبرعات والرعايات الرسمية'!$D:$D)+SUMIF('ملخص مفصل بالمصروفات'!$J:$J,"="&($A20&TEXT(F$4,"mmm-yy")),'ملخص مفصل بالمصروفات'!$E:$E) -> 0 | G20: =SUMIF('التبرعات والرعايات الرسمية'!$L:$L,"="&($A20&TEXT(G$4,"mmm-yy")),'التبرعات والرعايات الرسمية'!$D:$D)+SUMIF('ملخص مفصل بالمصروفات'!$J:$J,"="&($A20&TEXT(G$4,"mmm-yy")),'ملخص مفصل بالمصروفات'!$E:$E) -> 0 | H20: =SUMIF('التبرعات والرعايات الرسمية'!$L:$L,"="&($A20&TEXT(H$4,"mmm-yy")),'التبرعات والرعايات الرسمية'!$D:$D)+SUMIF('ملخص مفصل بالمصروفات'!$J:$J,"="&($A20&TEXT(H$4,"mmm-yy")),'ملخص مفصل بالمصروفات'!$E:$E) -> 0 | I20: =SUMIF('التبرعات والرعايات الرسمية'!$L:$L,"="&($A20&TEXT(I$4,"mmm-yy")),'التبرعات والرعايات الرسمية'!$D:$D)+SUMIF('ملخص مفصل بالمصروفات'!$J:$J,"="&($A20&TEXT(I$4,"mmm-yy")),'ملخص مفصل بالمصروفات'!$E:$E) -> 0 | J20: =SUMIF('التبرعات والرعايات الرسمية'!$L:$L,"="&($A20&TEXT(J$4,"mmm-yy")),'التبرعات والرعايات الرسمية'!$D:$D)+SUMIF('ملخص مفصل بالمصروفات'!$J:$J,"="&($A20&TEXT(J$4,"mmm-yy")),'ملخص مفصل بالمصروفات'!$E:$E) -> 0 | K20: =SUMIF('التبرعات والرعايات الرسمية'!$L:$L,"="&($A20&TEXT(K$4,"mmm-yy")),'التبرعات والرعايات الرسمية'!$D:$D)+SUMIF('ملخص مفصل بالمصروفات'!$J:$J,"="&($A20&TEXT(K$4,"mmm-yy")),'ملخص مفصل بالمصروفات'!$E:$E) -> 0 | L20: =SUMIF('التبرعات والرعايات الرسمية'!$L:$L,"="&($A20&TEXT(L$4,"mmm-yy")),'التبرعات والرعايات الرسمية'!$D:$D)+SUMIF('ملخص مفصل بالمصروفات'!$J:$J,"="&($A20&TEXT(L$4,"mmm-yy")),'ملخص مفصل بالمصروفات'!$E:$E) -> 0 | M20: =SUMIF('التبرعات والرعايات الرسمية'!$L:$L,"="&($A20&TEXT(M$4,"mmm-yy")),'التبرعات والرعايات الرسمية'!$D:$D)+SUMIF('ملخص مفصل بالمصروفات'!$J:$J,"="&($A20&TEXT(M$4,"mmm-yy")),'ملخص مفصل بالمصروفات'!$E:$E) -> 0 | N20: =SUMIF('التبرعات والرعايات الرسمية'!$L:$L,"="&($A20&TEXT(N$4,"mmm-yy")),'التبرعات والرعايات الرسمية'!$D:$D)+SUMIF('ملخص مفصل بالمصروفات'!$J:$J,"="&($A20&TEXT(N$4,"mmm-yy")),'ملخص مفصل بالمصروفات'!$E:$E) -> 0 | O20: =SUM(C20:N20) -> 0
A22: 9000 | B22: تكاليف الإنشاءات | C22: =SUMIF('التبرعات والرعايات الرسمية'!$L:$L,"="&($A22&TEXT(C$4,"mmm-yy")),'التبرعات والرعايات الرسمية'!$D:$D)+SUMIF('ملخص مفصل بالمصروفات'!$J:$J,"="&($A22&TEXT(C$4,"mmm-yy")),'ملخص مفصل بالمصروفات'!$E:$E) -> 0 | D22: =SUMIF('التبرعات والرعايات الرسمية'!$L:$L,"="&($A22&TEXT(D$4,"mmm-yy")),'التبرعات والرعايات الرسمية'!$D:$D)+SUMIF('ملخص مفصل بالمصروفات'!$J:$J,"="&($A22&TEXT(D$4,"mmm-yy")),'ملخص مفصل بالمصروفات'!$E:$E) -> 0 | E22: =SUMIF('التبرعات والرعايات الرسمية'!$L:$L,"="&($A22&TEXT(E$4,"mmm-yy")),'التبرعات والرعايات الرسمية'!$D:$D)+SUMIF('ملخص مفصل بالمصروفات'!$J:$J,"="&($A22&TEXT(E$4,"mmm-yy")),'ملخص مفصل بالمصروفات'!$E:$E) -> 0 | F22: =SUMIF('التبرعات والرعايات الرسمية'!$L:$L,"="&($A22&TEXT(F$4,"mmm-yy")),'التبرعات والرعايات الرسمية'!$D:$D)+SUMIF('ملخص مفصل بالمصروفات'!$J:$J,"="&($A22&TEXT(F$4,"mmm-yy")),'ملخص مفصل بالمصروفات'!$E:$E) -> 0 | G22: =SUMIF('التبرعات والرعايات الرسمية'!$L:$L,"="&($A22&TEXT(G$4,"mmm-yy")),'التبرعات والرعايات الرسمية'!$D:$D)+SUMIF('ملخص مفصل بالمصروفات'!$J:$J,"="&($A22&TEXT(G$4,"mmm-yy")),'ملخص مفصل بالمصروفات'!$E:$E) -> 0 | H22: =SUMIF('التبرعات والرعايات الرسمية'!$L:$L,"="&($A22&TEXT(H$4,"mmm-yy")),'التبرعات والرعايات الرسمية'!$D:$D)+SUMIF('ملخص مفصل بالمصروفات'!$J:$J,"="&($A22&TEXT(H$4,"mmm-yy")),'ملخص مفصل بالمصروفات'!$E:$E) -> 0 | I22: =SUMIF('التبرعات والرعايات الرسمية'!$L:$L,"="&($A22&TEXT(I$4,"mmm-yy")),'التبرعات والرعايات الرسمية'!$D:$D)+SUMIF('ملخص مفصل بالمصروفات'!$J:$J,"="&($A22&TEXT(I$4,"mmm-yy")),'ملخص مفصل بالمصروفات'!$E:$E) -> 0 | J22: =SUMIF('التبرعات والرعايات الرسمية'!$L:$L,"="&($A22&TEXT(J$4,"mmm-yy")),'التبرعات والرعايات الرسمية'!$D:$D)+SUMIF('ملخص مفصل بالمصروفات'!$J:$J,"="&($A22&TEXT(J$4,"mmm-yy")),'ملخص مفصل بالمصروفات'!$E:$E) -> 0 | K22: =SUMIF('التبرعات والرعايات الرسمية'!$L:$L,"="&($A22&TEXT(K$4,"mmm-yy")),'التبرعات والرعايات الرسمية'!$D:$D)+SUMIF('ملخص مفصل بالمصروفات'!$J:$J,"="&($A22&TEXT(K$4,"mmm-yy")),'ملخص مفصل بالمصروفات'!$E:$E) -> 0 | L22: =SUMIF('التبرعات والرعايات الرسمية'!$L:$L,"="&($A22&TEXT(L$4,"mmm-yy")),'التبرعات والرعايات الرسمية'!$D:$D)+SUMIF('ملخص مفصل بالمصروفات'!$J:$J,"="&($A22&TEXT(L$4,"mmm-yy")),'ملخص مفصل بالمصروفات'!$E:$E) -> 0 | M22: =SUMIF('التبرعات والرعايات الرسمية'!$L:$L,"="&($A22&TEXT(M$4,"mmm-yy")),'التبرعات والرعايات الرسمية'!$D:$D)+SUMIF('ملخص مفصل بالمصروفات'!$J:$J,"="&($A22&TEXT(M$4,"mmm-yy")),'ملخص مفصل بالمصروفات'!$E:$E) -> 0 | N22: =SUMIF('التبرعات والرعايات الرسمية'!$L:$L,"="&($A22&TEXT(N$4,"mmm-yy")),'التبرعات والرعايات الرسمية'!$D:$D)+SUMIF('ملخص مفصل بالمصروفات'!$J:$J,"="&($A22&TEXT(N$4,"mmm-yy")),'ملخص مفصل بالمصروفات'!$E:$E) -> 0 | O22: =SUM(C22:N22) -> 0
A24: 10000 | B24: التسويق | C24: =SUMIF('التبرعات والرعايات الرسمية'!$L:$L,"="&($A24&TEXT(C$4,"mmm-yy")),'التبرعات والرعايات الرسمية'!$D:$D)+SUMIF('ملخص مفصل بالمصروفات'!$J:$J,"="&($A24&TEXT(C$4,"mmm-yy")),'ملخص مفصل بالمصروفات'!$E:$E) -> 0 | D24: =SUMIF('التبرعات والرعايات الرسمية'!$L:$L,"="&($A24&TEXT(D$4,"mmm-yy")),'التبرعات والرعايات الرسمية'!$D:$D)+SUMIF('ملخص مفصل بالمصروفات'!$J:$J,"="&($A24&TEXT(D$4,"mmm-yy")),'ملخص مفصل بالمصروفات'!$E:$E) -> 0 | E24: =SUMIF('التبرعات والرعايات الرسمية'!$L:$L,"="&($A24&TEXT(E$4,"mmm-yy")),'التبرعات والرعايات الرسمية'!$D:$D)+SUMIF('ملخص مفصل بالمصروفات'!$J:$J,"="&($A24&TEXT(E$4,"mmm-yy")),'ملخص مفصل بالمصروفات'!$E:$E) -> 0 | F24: =SUMIF('التبرعات والرعايات الرسمية'!$L:$L,"="&($A24&TEXT(F$4,"mmm-yy")),'التبرعات والرعايات الرسمية'!$D:$D)+SUMIF('ملخص مفصل بالمصروفات'!$J:$J,"="&($A24&TEXT(F$4,"mmm-yy")),'ملخص مفصل بالمصروفات'!$E:$E) -> 0 | G24: =SUMIF('التبرعات والرعايات الرسمية'!$L:$L,"="&($A24&TEXT(G$4,"mmm-yy")),'التبرعات والرعايات الرسمية'!$D:$D)+SUMIF('ملخص مفصل بالمصروفات'!$J:$J,"="&($A24&TEXT(G$4,"mmm-yy")),'ملخص مفصل بالمصروفات'!$E:$E) -> 0 | H24: =SUMIF('التبرعات والرعايات الرسمية'!$L:$L,"="&($A24&TEXT(H$4,"mmm-yy")),'التبرعات والرعايات الرسمية'!$D:$D)+SUMIF('ملخص مفصل بالمصروفات'!$J:$J,"="&($A24&TEXT(H$4,"mmm-yy")),'ملخص مفصل بالمصروفات'!$E:$E) -> 0 | I24: =SUMIF('التبرعات والرعايات الرسمية'!$L:$L,"="&($A24&TEXT(I$4,"mmm-yy")),'التبرعات والرعايات الرسمية'!$D:$D)+SUMIF('ملخص مفصل بالمصروفات'!$J:$J,"="&($A24&TEXT(I$4,"mmm-yy")),'ملخص مفصل بالمصروفات'!$E:$E) -> 0 | J24: =SUMIF('التبرعات والرعايات الرسمية'!$L:$L,"="&($A24&TEXT(J$4,"mmm-yy")),'التبرعات والرعايات الرسمية'!$D:$D)+SUMIF('ملخص مفصل بالمصروفات'!$J:$J,"="&($A24&TEXT(J$4,"mmm-yy")),'ملخص مفصل بالمصروفات'!$E:$E) -> 0 | K24: =SUMIF('التبرعات والرعايات الرسمية'!$L:$L,"="&($A24&TEXT(K$4,"mmm-yy")),'التبرعات والرعايات الرسمية'!$D:$D)+SUMIF('ملخص مفصل بالمصروفات'!$J:$J,"="&($A24&TEXT(K$4,"mmm-yy")),'ملخص مفصل بالمصروفات'!$E:$E) -> 0 | L24: =SUMIF('التبرعات والرعايات الرسمية'!$L:$L,"="&($A24&TEXT(L$4,"mmm-yy")),'التبرعات والرعايات الرسمية'!$D:$D)+SUMIF('ملخص مفصل بالمصروفات'!$J:$J,"="&($A24&TEXT(L$4,"mmm-yy")),'ملخص مفصل بالمصروفات'!$E:$E) -> 0 | M24: =SUMIF('التبرعات والرعايات الرسمية'!$L:$L,"="&($A24&TEXT(M$4,"mmm-yy")),'التبرعات والرعايات الرسمية'!$D:$D)+SUMIF('ملخص مفصل بالمصروفات'!$J:$J,"="&($A24&TEXT(M$4,"mmm-yy")),'ملخص مفصل بالمصروفات'!$E:$E) -> 0 | N24: =SUMIF('التبرعات والرعايات الرسمية'!$L:$L,"="&($A24&TEXT(N$4,"mmm-yy")),'التبرعات والرعايات الرسمية'!$D:$D)+SUMIF('ملخص مفصل بالمصروفات'!$J:$J,"="&($A24&TEXT(N$4,"mmm-yy")),'ملخص مفصل بالمصروفات'!$E:$E) -> 0 | O24: =SUM(C24:N24) -> 0
A26: 11000 | B26: التبرعات | C26: =SUMIF('التبرعات والرعايات الرسمية'!$L:$L,"="&($A26&TEXT(C$4,"mmm-yy")),'التبرعات والرعايات الرسمية'!$D:$D)+SUMIF('ملخص مفصل بالمصروفات'!$J:$J,"="&($A26&TEXT(C$4,"mmm-yy")),'ملخص مفصل بالمصروفات'!$E:$E) -> 0 | D26: =SUMIF('التبرعات والرعايات الرسمية'!$L:$L,"="&($A26&TEXT(D$4,"mmm-yy")),'التبرعات والرعايات الرسمية'!$D:$D)+SUMIF('ملخص مفصل بالمصروفات'!$J:$J,"="&($A26&TEXT(D$4,"mmm-yy")),'ملخص مفصل بالمصروفات'!$E:$E) -> ر.س2,500.00 | E26: =SUMIF('التبرعات والرعايات الرسمية'!$L:$L,"="&($A26&TEXT(E$4,"mmm-yy")),'التبرعات والرعايات الرسمية'!$D:$D)+SUMIF('ملخص مفصل بالمصروفات'!$J:$J,"="&($A26&TEXT(E$4,"mmm-yy")),'ملخص مفصل بالمصروفات'!$E:$E) -> 0 | F26: =SUMIF('التبرعات والرعايات الرسمية'!$L:$L,"="&($A26&TEXT(F$4,"mmm-yy")),'التبرعات والرعايات الرسمية'!$D:$D)+SUMIF('ملخص مفصل بالمصروفات'!$J:$J,"="&($A26&TEXT(F$4,"mmm-yy")),'ملخص مفصل بالمصروفات'!$E:$E) -> 0 | G26: =SUMIF('التبرعات والرعايات الرسمية'!$L:$L,"="&($A26&TEXT(G$4,"mmm-yy")),'التبرعات والرعايات الرسمية'!$D:$D)+SUMIF('ملخص مفصل بالمصروفات'!$J:$J,"="&($A26&TEXT(G$4,"mmm-yy")),'ملخص مفصل بالمصروفات'!$E:$E) -> 0 | H26: =SUMIF('التبرعات والرعايات الرسمية'!$L:$L,"="&($A26&TEXT(H$4,"mmm-yy")),'التبرعات والرعايات الرسمية'!$D:$D)+SUMIF('ملخص مفصل بالمصروفات'!$J:$J,"="&($A26&TEXT(H$4,"mmm-yy")),'ملخص مفصل بالمصروفات'!$E:$E) -> 0 | I26: =SUMIF('التبرعات والرعايات الرسمية'!$L:$L,"="&($A26&TEXT(I$4,"mmm-yy")),'التبرعات والرعايات الرسمية'!$D:$D)+SUMIF('ملخص مفصل بالمصروفات'!$J:$J,"="&($A26&TEXT(I$4,"mmm-yy")),'ملخص مفصل بالمصروفات'!$E:$E) -> 0 | J26: =SUMIF('التبرعات والرعايات الرسمية'!$L:$L,"="&($A26&TEXT(J$4,"mmm-yy")),'التبرعات والرعايات الرسمية'!$D:$D)+SUMIF('ملخص مفصل بالمصروفات'!$J:$J,"="&($A26&TEXT(J$4,"mmm-yy")),'ملخص مفصل بالمصروفات'!$E:$E) -> 0 | K26: =SUMIF('التبرعات والرعايات الرسمية'!$L:$L,"="&($A26&TEXT(K$4,"mmm-yy")),'التبرعات والرعايات الرسمية'!$D:$D)+SUMIF('ملخص مفصل بالمصروفات'!$J:$J,"="&($A26&TEXT(K$4,"mmm-yy")),'ملخص مفصل بالمصروفات'!$E:$E) -> 0 | L26: =SUMIF('التبرعات والرعايات الرسمية'!$L:$L,"="&($A26&TEXT(L$4,"mmm-yy")),'التبرعات والرعايات الرسمية'!$D:$D)+SUMIF('ملخص مفصل بالمصروفات'!$J:$J,"="&($A26&TEXT(L$4,"mmm-yy")),'ملخص مفصل بالمصروفات'!$E:$E) -> 0 | M26: =SUMIF('التبرعات والرعايات الرسمية'!$L:$L,"="&($A26&TEXT(M$4,"mmm-yy")),'التبرعات والرعايات الرسمية'!$D:$D)+SUMIF('ملخص مفصل بالمصروفات'!$J:$J,"="&($A26&TEXT(M$4,"mmm-yy")),'ملخص مفصل بالمصروفات'!$E:$E) -> 0 | N26: =SUMIF('التبرعات والرعايات الرسمية'!$L:$L,"="&($A26&TEXT(N$4,"mmm-yy")),'التبرعات والرعايات الرسمية'!$D:$D)+SUMIF('ملخص مفصل بالمصروفات'!$J:$J,"="&($A26&TEXT(N$4,"mmm-yy")),'ملخص مفصل بالمصروفات'!$E:$E) -> 0 | O26: =SUM(C26:N26) -> ر.س2,500.00
A28: 12000 | B28: الرعايات الرسمية | C28: =SUMIF('التبرعات والرعايات الرسمية'!$L:$L,"="&($A28&TEXT(C$4,"mmm-yy")),'التبرعات والرعايات الرسمية'!$D:$D)+SUMIF('ملخص مفصل بالمصروفات'!$J:$J,"="&($A28&TEXT(C$4,"mmm-yy")),'ملخص مفصل بالمصروفات'!$E:$E) -> ر.س1,000.00 | D28: =SUMIF('التبرعات والرعايات الرسمية'!$L:$L,"="&($A28&TEXT(D$4,"mmm-yy")),'التبرعات والرعايات الرسمية'!$D:$D)+SUMIF('ملخص مفصل بالمصروفات'!$J:$J,"="&($A28&TEXT(D$4,"mmm-yy")),'ملخص مفصل بالمصروفات'!$E:$E) -> 0 | E28: =SUMIF('التبرعات والرعايات الرسمية'!$L:$L,"="&($A28&TEXT(E$4,"mmm-yy")),'التبرعات والرعايات الرسمية'!$D:$D)+SUMIF('ملخص مفصل بالمصروفات'!$J:$J,"="&($A28&TEXT(E$4,"mmm-yy")),'ملخص مفصل بالمصروفات'!$E:$E) -> 0 | F28: =SUMIF('التبرعات والرعايات الرسمية'!$L:$L,"="&($A28&TEXT(F$4,"mmm-yy")),'التبرعات والرعايات الرسمية'!$D:$D)+SUMIF('ملخص مفصل بالمصروفات'!$J:$J,"="&($A28&TEXT(F$4,"mmm-yy")),'ملخص مفصل بالمصروفات'!$E:$E) -> 0 | G28: =SUMIF('التبرعات والرعايات الرسمية'!$L:$L,"="&($A28&TEXT(G$4,"mmm-yy")),'التبرعات والرعايات الرسمية'!$D:$D)+SUMIF('ملخص مفصل بالمصروفات'!$J:$J,"="&($A28&TEXT(G$4,"mmm-yy")),'ملخص مفصل بالمصروفات'!$E:$E) -> 0 | H28: =SUMIF('التبرعات والرعايات الرسمية'!$L:$L,"="&($A28&TEXT(H$4,"mmm-yy")),'التبرعات والرعايات الرسمية'!$D:$D)+SUMIF('ملخص مفصل بالمصروفات'!$J:$J,"="&($A28&TEXT(H$4,"mmm-yy")),'ملخص مفصل بالمصروفات'!$E:$E) -> 0 | I28: =SUMIF('التبرعات والرعايات الرسمية'!$L:$L,"="&($A28&TEXT(I$4,"mmm-yy")),'التبرعات والرعايات الرسمية'!$D:$D)+SUMIF('ملخص مفصل بالمصروفات'!$J:$J,"="&($A28&TEXT(I$4,"mmm-yy")),'ملخص مفصل بالمصروفات'!$E:$E) -> 0 | J28: =SUMIF('التبرعات والرعايات الرسمية'!$L:$L,"="&($A28&TEXT(J$4,"mmm-yy")),'التبرعات والرعايات الرسمية'!$D:$D)+SUMIF('ملخص مفصل بالمصروفات'!$J:$J,"="&($A28&TEXT(J$4,"mmm-yy")),'ملخص مفصل بالمصروفات'!$E:$E) -> 0 | K28: =SUMIF('التبرعات والرعايات الرسمية'!$L:$L,"="&($A28&TEXT(K$4,"mmm-yy")),'التبرعات والرعايات الرسمية'!$D:$D)+SUMIF('ملخص مفصل بالمصروفات'!$J:$J,"="&($A28&TEXT(K$4,"mmm-yy")),'ملخص مفصل بالمصروفات'!$E:$E) -> 0 | L28: =SUMIF('التبرعات والرعايات الرسمية'!$L:$L,"="&($A28&TEXT(L$4,"mmm-yy")),'التبرعات والرعايات الرسمية'!$D:$D)+SUMIF('ملخص مفصل بالمصروفات'!$J:$J,"="&($A28&TEXT(L$4,"mmm-yy")),'ملخص مفصل بالمصروفات'!$E:$E) -> 0 | M28: =SUMIF('التبرعات والرعايات الرسمية'!$L:$L,"="&($A28&TEXT(M$4,"mmm-yy")),'التبرعات والرعايات الرسمية'!$D:$D)+SUMIF('ملخص مفصل بالمصروفات'!$J:$J,"="&($A28&TEXT(M$4,"mmm-yy")),'ملخص مفصل بالمصروفات'!$E:$E) -> 0 | N28: =SUMIF('التبرعات والرعايات الرسمية'!$L:$L,"="&($A28&TEXT(N$4,"mmm-yy")),'التبرعات والرعايات الرسمية'!$D:$D)+SUMIF('ملخص مفصل بالمصروفات'!$J:$J,"="&($A28&TEXT(N$4,"mmm-yy")),'ملخص مفصل بالمصروفات'!$E:$E) -> 0 | O28: =SUM(C28:N28) -> ر.س1,000.00
B30: الإجمالي | C30: =SUM(C6:C28) -> ر.س4,250.75 | D30: ر.س2,500.00 | E30: 0 | F30: 0 | G30: 0 | H30: 0 | I30: 0 | J30: 0 | K30: 0 | L30: 0 | M30: 0 | N30: 0 | O30: ر.س6,750.75

Sheet ملخص مفصل بالمصروفات
A1: رمز دفتر الأستاذ العام | B1: تاريخ الفاتورة | C1: رقم الفاتورة | D1: مطلوب من قِبل | E1: مبلغ الشيك | F1: المستفيد | G1: استخدام الشيك | H1: أسلوب التوزيع | I1: تاريخ الملف | J1: الحقل الأساسي المنشئ
A2: 1000 | B2: 38353 | C2: 100 | D2: سيد عباس | E2: ر.س750.75 | F2: الحمام الزاجل للخدمات البريدية | G2: أجهزة بريدية | H2: بالبريد | I2: 38356 | J2: =A2&TEXT(B2,"mmm-yy") -> 1000Jan-05
A3: 7000 | B3: 2005-01-15 | C3: 101 | D3: مهدي الفاخوري | E3: ر.س2,500.00 | F3: المتحدة للبرمجيات | G3: جهازا كمبيوتر سطح مكتب | H3: بالائتمان | I3: 38372 | J3: 7000Jan-05
J4: Jan-00
J5: Jan-00
J6: Jan-00
J7: Jan-00
J8: Jan-00
J9: Jan-00
J10: Jan-00
J11: Jan-00
J12: Jan-00
J13: Jan-00
J14: Jan-00
J15: Jan-00
J16: Jan-00
J17: Jan-00
J18: Jan-00
J19: Jan-00
J20: Jan-00
J21: Jan-00
J22: Jan-00
J23: Jan-00
J24: Jan-00
J25: Jan-00
J26: Jan-00
J27: Jan-00
J28: Jan-00
J29: Jan-00
J30: Jan-00
J31: =A31&TEXT(B31," ") -> 
J32: =A32&TEXT(B32,"mmm-yy") -> Jan-00
J33: Jan-00
J34: Jan-00
J35: Jan-00
J36: Jan-00
J37: Jan-00
J38: Jan-00
J39: Jan-00
J40: Jan-00
J41: Jan-00
J42: Jan-00
J43: Jan-00
J44: Jan-00
J45: Jan-00
J46: Jan-00
J47: Jan-00
J48: Jan-00
J49: Jan-00
J50: Jan-00
J51: Jan-00
J52: Jan-00
J53: Jan-00
J54: Jan-00
J55: Jan-00
J56: Jan-00
J57: Jan-00
J58: Jan-00
J59: Jan-00
J60: Jan-00
J61: Jan-00
J62: Jan-00
J63: Jan-00
J64: Jan-00
J65: Jan-00
J66: Jan-00
J67: =A67&TEXT(B67," ") -> 
J68: =A68&TEXT(B68,"mmm-yy") -> Jan-00
J69: Jan-00
J70: Jan-00
J71: Jan-00
J72: Jan-00
J73: Jan-00
J74: Jan-00
J75: Jan-00
J76: Jan-00
J77: Jan-00
J78: Jan-00
J79: Jan-00
J80: Jan-00
J81: Jan-00
J82: Jan-00
J83: Jan-00
J84: Jan-00
J85: Jan-00
J86: Jan-00
J87: Jan-00
J88: Jan-00
J89: Jan-00
J90: Jan-00
J91: Jan-00
J92: Jan-00
J93: Jan-00
J94: Jan-00
J95: Jan-00
J96: Jan-00
J97: Jan-00
J98: Jan-00
J99: Jan-00
J100: Jan-00
J101: Jan-00
J102: Jan-00
J103: Jan-00

Sheet التبرعات والرعايات الرسمية
A1: رمز دفتر الأستاذ العام | B1: تاريخ إصدار الشيك المطلوب | C1: مطلوب من قِبل | D1: مبلغ الشيك | E1: مساهمة العام السابق | F1: المستفيد | G1: مستخدم لأجل | H1: توقيعه بواسطة | I1: الفئة | J1: أسلوب التوزيع | K1: تاريخ الملف | L1: الحقل الأساسي المنشئ
A2: 12000 | B2: 38372 | C2: فريد سيد | D2: ر.س1,000.00 | E2: 0 | F2: كلية الفنون الجميلة | G2: المنح الدراسية | H2: تامر الحلو | I2: الآداب | J2: الشيك | K2: 38382 | L2: =A2&TEXT(B2,"mmm-yy") -> 12000Jan-05
A3: 11000 | B3: 38398 | C3: فريد سيد | D3: ر.س2,500.00 | E3: 0 | F3: ألعاب المستقبل | G3: الجماعة | H3: أِشرف سمير | I3: المجتمع | J3: الشيك | K3: 38412 | L3: 11000Feb-05
L4: Jan-00
L5: Jan-00
L6: Jan-00
L7: Jan-00
L8: Jan-00
L9: Jan-00
L10: Jan-00
L11: Jan-00
L12: Jan-00
L13: Jan-00
L14: Jan-00
L15: Jan-00
L16: Jan-00
L17: Jan-00
L18: Jan-00
L19: Jan-00
L20: Jan-00
L21: Jan-00
L22: Jan-00
L23: Jan-00
L24: Jan-00
L25: Jan-00
L26: Jan-00
L27: Jan-00
L28: Jan-00
L29: Jan-00
L30: Jan-00
L31: Jan-00
L32: Jan-00
L33: Jan-00
L34: =A34&TEXT(B34,"mmm-yy") -> Jan-00
L35: Jan-00
L36: Jan-00
L37: Jan-00
L38: Jan-00
L39: Jan-00
L40: Jan-00
L41: Jan-00
L42: Jan-00
L43: Jan-00
L44: Jan-00
L45: Jan-00
L46: Jan-00
L47: Jan-00
L48: Jan-00
L49: Jan-00
L50: Jan-00
L51: Jan-00
L52: Jan-00
L53: Jan-00
L54: =A54&TEXT(B54," ") -> 
L55: =A55&TEXT(B55,"mmm-yy") -> Jan-00
L56: Jan-00
L57: Jan-00
L58: Jan-00
L59: Jan-00
L60: Jan-00
L61: Jan-00
L62: Jan-00
L63: Jan-00
L64: Jan-00
L65: Jan-00
L66: Jan-00
L67: Jan-00
L68: Jan-00
L69: Jan-00
L70: Jan-00
L71: Jan-00
L72: Jan-00
L73: Jan-00
L74: Jan-00
L75: Jan-00
L76: Jan-00
L77: Jan-00
L78: Jan-00
L79: Jan-00
L80: Jan-00
L81: Jan-00
L82: Jan-00
L83: Jan-00
L84: =A84&TEXT(B84," ") -> 
L85: =A85&TEXT(B85,"mmm-yy") -> Jan-00
L86: Jan-00
L87: Jan-00
L88: Jan-00
L89: Jan-00
L90: Jan-00
L91: Jan-00
L92: Jan-00
L93: Jan-00
L94: Jan-00
L95: Jan-00
L96: Jan-00
L97: Jan-00
L98: Jan-00
L99: Jan-00
L100: Jan-00
L101: Jan-00
L102: Jan-00
L103: Jan-00
L104: Jan-00
L105: Jan-00
L106: Jan-00
L107: Jan-00
L108: Jan-00
L109: Jan-00
